[Event "Nové Hrady - Rapid A"]
[Site "Nové Hrady, Czech Republic"]
[Date "2023.08.12"]
[Round "4.1"]
[White "Hák, David"]
[Black "Babula, Milan"]
[Result "1-0"]
[TimeControl "2x20min+5s"]
[WhiteFideId "377007"]
[BlackFideId "300632"]
[WhiteElo "2123"]
[BlackElo "2212"]

1. d4 {[%clk 00:20:08]} {[%emt 00:00:02]} Nf6 {[%clk 00:20:04]} {[%emt
00:00:06]} 2. c4 {[%clk 00:20:11]} {[%emt 00:00:02]} g6 {[%clk 00:20:08]} 3.
Nc3 {[%clk 00:20:15]} Bg7 {[%clk 00:20:11]} 4. e4 {[%clk 00:20:18]} d6 {[%clk
00:20:15]} {[%emt 00:00:06]} 5. Nf3 {[%clk 00:20:20]} {[%emt 00:00:03]} O-O
{[%clk 00:20:16]} {[%emt 00:00:04]} 6. Be2 {[%clk 00:20:24]} {[%emt 00:00:02]}
e5 {[%clk 00:20:13]} {[%emt 00:00:07]} 7. O-O {[%clk 00:20:13]} {[%emt
00:00:17]} Nc6 {[%clk 00:20:16]} 8. d5 {[%clk 00:20:17]} Ne7 {[%clk 00:20:19]}
{[%emt 00:00:03]} 9. Ne1 {[%clk 00:20:05]} {[%emt 00:00:17]} Nd7 {[%clk
00:20:11]} {[%emt 00:00:13]} 10. Be3 {[%clk 00:20:06]} {[%emt 00:00:04]} f5
{[%clk 00:20:13]} {[%emt 00:00:03]} 11. f3 {[%clk 00:20:09]} {[%emt 00:00:02]}
f4 {[%clk 00:20:00]} {[%emt 00:00:17]} 12. Bf2 {[%clk 00:20:13]} g5 {[%clk
00:20:03]} {[%emt 00:00:03]} 13. a4 {[%clk 00:20:17]} {[%emt 00:00:02]} h5
{[%clk 00:19:50]} {[%emt 00:00:17]} 14. a5 {[%clk 00:20:03]} {[%emt 00:00:20]}
Kh7 {[%clk 00:19:18]} {[%emt 00:00:37]} 15. Nb5 {[%clk 00:18:52]} {[%emt
00:01:15]} a6 {[%clk 00:17:49]} {[%emt 00:01:35]} 16. Na7 {[%clk 00:18:23]}
{[%emt 00:00:34]} Rxa7 {[%clk 00:17:52]} {[%emt 00:00:02]} 17. Bxa7 {[%clk
00:18:26]} {[%emt 00:00:02]} b6 {[%clk 00:17:56]} 18. b4 {[%clk 00:17:50]}
{[%emt 00:00:42]} Bb7 {[%clk 00:17:48]} {[%emt 00:00:13]} 19. axb6 {[%clk
00:16:13]} {[%emt 00:01:42]} cxb6 {[%clk 00:17:50]} {[%emt 00:00:03]} 20. c5
{[%clk 00:16:07]} {[%emt 00:00:11]} dxc5 {[%clk 00:17:50]} {[%emt 00:00:05]} 21.
Bxa6 {[%clk 00:15:30]} {[%emt 00:00:42]} Bxa6 {[%clk 00:14:43]} {[%emt
00:03:12]} 22. Rxa6 {[%clk 00:15:33]} {[%emt 00:00:02]} cxb4 {[%clk 00:14:40]}
{[%emt 00:00:08]} 23. Nd3 {[%clk 00:14:56]} {[%emt 00:00:41]} Nc8 {[%clk
00:14:07]} {[%emt 00:00:40]} 24. Nxb4 {[%clk 00:12:59]} {[%emt 00:02:01]} Nc5
{[%clk 00:14:08]} {[%emt 00:00:04]} 25. Ra2 {[%clk 00:12:07]} {[%emt 00:00:57]}
Qd7 {[%clk 00:11:29]} {[%emt 00:02:44]} 26. Nc6 {[%clk 00:11:38]} {[%emt
00:00:34]} Qb7 {[%clk 00:11:32]} {[%emt 00:00:02]} 27. Qc2 {[%clk 00:08:02]}
{[%emt 00:03:41]} Re8 {[%clk 00:10:22]} {[%emt 00:01:15]} 28. Rb1 {[%clk
00:07:24]} {[%emt 00:00:43]} Nd7 {[%clk 00:09:46]} {[%emt 00:00:41]} 29. Qa4
{[%clk 00:06:20]} {[%emt 00:01:09]} Bf8 {[%clk 00:09:10]} {[%emt 00:00:40]} 30.
Nb8 {[%clk 00:03:55]} {[%emt 00:02:31]} Bc5+ {[%clk 00:08:51]} {[%emt
00:00:24]} 31. Kh1 {[%clk 00:03:58]} Re7 {[%clk 00:07:27]} {[%emt 00:01:30]} 32.
Qc6 {[%clk 00:03:54]} {[%emt 00:00:08]} Nxb8 {[%clk 00:03:49]} {[%emt
00:03:44]} 33. Bxb8 {[%clk 00:03:57]} {[%emt 00:00:02]} Bd4 {[%clk 00:03:47]}
{[%emt 00:00:07]} 34. Rc2 {[%clk 00:03:23]} {[%emt 00:00:39]} Qxb8 {[%clk
00:00:42]} {[%emt 00:03:11]} 35. Qxc8 {[%clk 00:03:25]} {[%emt 00:00:02]} Qxc8
{[%clk 00:00:30]} {[%emt 00:00:17]} 36. Rxc8 {[%clk 00:03:28]} Bc5 {[%clk
00:00:33]} 37. Ra1 {[%clk 00:02:29]} {[%emt 00:01:06]} Kg7 {[%clk 00:00:20]}
{[%emt 00:00:19]} 38. Raa8 {[%clk 00:02:09]} {[%emt 00:00:25]} Rf7 {[%clk
00:00:11]} {[%emt 00:00:14]} 39. Rc6 {[%clk 00:02:01]} {[%emt 00:00:13]} h4
{[%clk 00:00:07]} {[%emt 00:00:09]} 40. Rac8 {[%clk 00:01:24]} {[%emt
00:00:42]} g4 {[%emt 00:00:07]} 41. R6c7 {[%clk 00:00:36]} {[%emt 00:00:51]} h3
{[%clk 00:00:07]} {[%emt 00:00:05]} 42. Rxf7+ {[%clk 00:00:36]} {[%emt
00:00:05]} Kxf7 {[%clk 00:00:11]} 43. fxg4 {[%clk 00:00:35]} {[%emt 00:00:07]}
hxg2+ {[%clk 00:00:12]} {[%emt 00:00:03]} 44. Kxg2 {[%clk 00:00:39]} {[%emt
00:00:02]} 1-0

[Event "Nové Hrady - Rapid A"]
[Site "Nové Hrady, Czech Republic"]
[Date "2023.08.12"]
[Round "4.2"]
[White "Půlpán, Jakub"]
[Black "Slabý, Matěj"]
[Result "1-0"]
[TimeControl "2x20min+5s"]
[WhiteFideId "302759"]
[BlackFideId "23734876"]
[WhiteElo "2515"]
[BlackElo "1944"]

1. Nf3 {[%clk 00:20:09]} d5 {[%clk 00:19:53]} {[%emt 00:00:18]} 2. b3 {[%clk
00:20:08]} {[%emt 00:00:05]} Nc6 {[%clk 00:19:53]} {[%emt 00:00:06]} 3. Bb2
{[%clk 00:20:11]} {[%emt 00:00:02]} Bg4 {[%clk 00:19:55]} {[%emt 00:00:03]} 4.
h3 {[%clk 00:20:06]} {[%emt 00:00:10]} Bxf3 {[%clk 00:19:55]} {[%emt 00:00:05]}
5. exf3 {[%clk 00:20:08]} {[%emt 00:00:02]} e5 {[%clk 00:19:56]} {[%emt
00:00:04]} 6. Bb5 {[%clk 00:20:10]} {[%emt 00:00:03]} Bd6 {[%clk 00:19:55]}
{[%emt 00:00:06]} 7. d4 {[%clk 00:20:02]} {[%emt 00:00:13]} exd4 {[%clk
00:19:05]} {[%emt 00:00:56]} 8. O-O {[%clk 00:19:56]} {[%emt 00:00:10]} Qd7
{[%clk 00:16:34]} {[%emt 00:02:36]} 9. Bxd4 {[%clk 00:18:24]} {[%emt 00:01:37]}
Nge7 {[%clk 00:14:32]} {[%emt 00:02:07]} 10. Re1 {[%clk 00:17:18]} {[%emt
00:01:12]} O-O-O {[%clk 00:14:03]} {[%emt 00:00:33]} 11. Bxa7 {[%clk 00:14:49]}
{[%emt 00:02:35]} Qf5 {[%clk 00:12:45]} {[%emt 00:01:21]} 12. Bd4 {[%clk
00:14:04]} {[%emt 00:00:51]} Qf4 {[%clk 00:12:16]} {[%emt 00:00:34]} 13. c3
{[%clk 00:11:18]} {[%emt 00:02:51]} Qh2+ {[%clk 00:11:26]} {[%emt 00:00:55]} 14.
Kf1 {[%clk 00:11:22]} Qh1+ {[%clk 00:11:29]} {[%emt 00:00:03]} 15. Ke2 {[%clk
00:11:26]} Qxg2 {[%clk 00:11:31]} {[%emt 00:00:03]} 16. Be3 {[%clk 00:07:17]}
{[%emt 00:04:16]} Ne5 {[%clk 00:10:46]} {[%emt 00:00:50]} 17. f4 {[%clk
00:06:35]} {[%emt 00:00:46]} Qf3+ {[%clk 00:10:34]} {[%emt 00:00:17]} 18. Kd2
{[%clk 00:06:32]} {[%emt 00:00:07]} Qxd1+ {[%clk 00:10:31]} {[%emt 00:00:09]}
19. Kxd1 {[%clk 00:06:19]} {[%emt 00:00:18]} N5g6 {[%clk 00:10:26]} {[%emt
00:00:10]} 20. Nd2 {[%clk 00:05:50]} {[%emt 00:00:34]} c6 {[%clk 00:10:13]}
{[%emt 00:00:18]} 21. Bd3 {[%clk 00:05:54]} Rhe8 {[%clk 00:10:17]} {[%emt
00:00:02]} 22. Rg1 {[%clk 00:05:35]} {[%emt 00:00:23]} Bxf4 {[%clk 00:09:55]}
{[%emt 00:00:28]} 23. Bxg6 {[%clk 00:04:12]} {[%emt 00:01:28]} Nxg6 {[%clk
00:09:58]} {[%emt 00:00:02]} 24. Rxg6 {[%clk 00:03:31]} {[%emt 00:00:47]} Bxe3
{[%clk 00:09:55]} {[%emt 00:00:07]} 25. Rxg7 {[%clk 00:03:35]} Bxf2 {[%clk
00:09:52]} {[%emt 00:00:09]} 26. Kc2 {[%clk 00:03:40]} d4 {[%clk 00:06:58]}
{[%emt 00:03:00]} 27. Rf1 {[%clk 00:02:06]} {[%emt 00:01:38]} Re2 {[%clk
00:04:46]} {[%emt 00:02:17]} 28. Kd1 {[%clk 00:01:47]} {[%emt 00:00:24]} d3
{[%clk 00:04:38]} {[%emt 00:00:13]} 29. Rxf7 {[%clk 00:01:41]} {[%emt
00:00:11]} Rde8 {[%clk 00:04:40]} {[%emt 00:00:04]} 30. R7xf2 {[%clk 00:01:41]}
{[%emt 00:00:04]} 1-0

[Event "Nové Hrady - Rapid A"]
[Site "Nové Hrady, Czech Republic"]
[Date "2023.08.12"]
[Round "4.3"]
[White "Steinbauer, Sebastián"]
[Black "Pochinkov, Andrey"]
[Result "1-0"]
[TimeControl "2x20min+5s"]
[WhiteFideId "399272"]
[BlackFideId "4146387"]
[WhiteElo "1833"]
[BlackElo "2052"]

1. e4 {[%clk 00:20:05]} {[%emt 00:00:03]} e6 {[%clk 00:20:05]} 2. d4 {[%clk
00:20:05]} {[%emt 00:00:02]} d5 {[%clk 00:20:05]} 3. exd5 {[%clk 00:20:05]}
{[%emt 00:00:02]} exd5 {[%clk 00:20:05]} {[%emt 00:00:02]} 4. Bd3 {[%clk
00:20:05]} {[%emt 00:00:02]} Bd6 {[%clk 00:19:54]} {[%emt 00:00:16]} 5. Nf3
{[%clk 00:20:05]} {[%emt 00:00:03]} Ne7 {[%clk 00:19:21]} {[%emt 00:00:37]} 6.
Bg5 {[%clk 00:20:05]} f6 {[%clk 00:19:11]} {[%emt 00:00:17]} 7. Bh4 {[%clk
00:20:05]} Bf5 {[%clk 00:19:11]} {[%emt 00:00:05]} 8. c3 {[%clk 00:19:54]}
{[%emt 00:00:17]} Qd7 {[%clk 00:19:01]} {[%emt 00:00:15]} 9. Qc2 {[%clk
00:19:35]} {[%emt 00:00:24]} Nbc6 {[%clk 00:18:44]} {[%emt 00:00:22]} 10. Nbd2
{[%clk 00:18:11]} {[%emt 00:01:30]} Bxd3 {[%clk 00:18:18]} {[%emt 00:00:31]} 11.
Qxd3 {[%clk 00:18:11]} {[%emt 00:00:04]} Nf5 {[%clk 00:18:18]} 12. Bg3 {[%clk
00:17:55]} {[%emt 00:00:21]} O-O-O {[%clk 00:17:45]} {[%emt 00:00:36]} 13. Bxd6
{[%clk 00:17:52]} {[%emt 00:00:09]} Nxd6 {[%clk 00:17:45]} {[%emt 00:00:02]} 14.
O-O-O {[%clk 00:17:50]} {[%emt 00:00:07]} Na5 {[%clk 00:17:12]} {[%emt
00:00:38]} 15. Rhe1 {[%clk 00:17:08]} {[%emt 00:00:48]} Qa4 {[%clk 00:16:44]}
{[%emt 00:00:39]} 16. Kb1 {[%clk 00:17:08]} Rhe8 {[%clk 00:16:44]} 17. Qxh7
{[%clk 00:16:29]} {[%emt 00:00:43]} g5 {[%clk 00:15:07]} {[%emt 00:01:42]} 18.
Qc2 {[%clk 00:16:13]} {[%emt 00:00:21]} Qd7 {[%clk 00:14:54]} {[%emt 00:00:17]}
19. h3 {[%clk 00:16:12]} {[%emt 00:00:08]} g4 {[%clk 00:14:47]} {[%emt
00:00:12]} 20. hxg4 {[%clk 00:14:20]} {[%emt 00:01:57]} Qxg4 {[%clk 00:14:47]}
21. g3 {[%clk 00:13:39]} {[%emt 00:00:47]} Nac4 {[%clk 00:13:16]} {[%emt
00:01:36]} 22. Nxc4 {[%clk 00:13:31]} {[%emt 00:00:13]} Nxc4 {[%clk 00:13:16]}
{[%emt 00:00:02]} 23. Nd2 {[%clk 00:13:23]} {[%emt 00:00:13]} Nd6 {[%clk
00:12:46]} {[%emt 00:00:35]} 24. Qd3 {[%clk 00:12:35]} {[%emt 00:00:53]} f5
{[%clk 00:12:26]} {[%emt 00:00:25]} 25. Kc2 {[%clk 00:11:10]} {[%emt 00:01:30]}
f4 {[%clk 00:12:02]} {[%emt 00:00:28]} 26. gxf4 {[%clk 00:09:48]} {[%emt
00:01:27]} Qxf4 {[%clk 00:12:02]} {[%emt 00:00:02]} 27. f3 {[%clk 00:09:27]}
{[%emt 00:00:27]} Nf5 {[%clk 00:11:51]} {[%emt 00:00:16]} 28. Rxe8 {[%clk
00:06:24]} {[%emt 00:03:09]} Rxe8 {[%clk 00:11:09]} {[%emt 00:00:46]} 29. Nf1
{[%clk 00:06:24]} {[%emt 00:00:03]} Rg8 {[%clk 00:10:36]} {[%emt 00:00:38]} 30.
Qe2 {[%clk 00:06:13]} {[%emt 00:00:16]} Nd6 {[%clk 00:09:06]} {[%emt 00:01:34]}
31. Qe6+ {[%clk 00:05:56]} {[%emt 00:00:24]} 1-0

[Event "Nové Hrady - Rapid A"]
[Site "Nové Hrady, Czech Republic"]
[Date "2023.08.12"]
[Round "4.4"]
[White "Garabik, Marek"]
[Black "Rausch, Rudolf"]
[Result "1/2-1/2"]
[TimeControl "2x20min+5s"]
[WhiteFideId "23717742"]
[BlackFideId "1639455"]
[WhiteElo "1767"]
[BlackElo "1861"]

1. e4 {[%clk 00:19:56]} {[%emt 00:00:14]} g6 {[%clk 00:20:08]} {[%emt
00:00:02]} 2. d4 {[%clk 00:19:58]} {[%emt 00:00:03]} d6 {[%clk 00:20:12]} 3.
Nf3 {[%clk 00:20:00]} {[%emt 00:00:03]} Bg7 {[%clk 00:20:16]} {[%emt 00:00:02]}
4. c3 {[%clk 00:20:01]} {[%emt 00:00:04]} Nf6 {[%clk 00:20:17]} {[%emt
00:00:05]} 5. Bd3 {[%clk 00:20:04]} {[%emt 00:00:02]} O-O {[%clk 00:20:18]}
{[%emt 00:00:03]} 6. O-O {[%clk 00:20:07]} {[%emt 00:00:02]} Bg4 {[%clk
00:20:07]} {[%emt 00:00:17]} 7. Bg5 {[%clk 00:20:09]} {[%emt 00:00:02]} Nbd7
{[%clk 00:20:06]} {[%emt 00:00:05]} 8. Nbd2 {[%clk 00:20:13]} {[%emt 00:00:02]}
c5 {[%clk 00:19:28]} {[%emt 00:00:43]} 9. Qb3 {[%clk 00:19:00]} {[%emt
00:01:17]} Bxf3 {[%clk 00:17:53]} {[%emt 00:01:40]} 10. Nxf3 {[%clk 00:19:01]}
{[%emt 00:00:04]} cxd4 {[%clk 00:17:48]} {[%emt 00:00:11]} 11. cxd4 {[%clk
00:18:47]} {[%emt 00:00:18]} Rb8 {[%clk 00:17:12]} {[%emt 00:00:42]} 12. Rac1
{[%clk 00:18:44]} {[%emt 00:00:09]} h6 {[%clk 00:17:07]} {[%emt 00:00:09]} 13.
Bd2 {[%clk 00:18:32]} {[%emt 00:00:16]} a6 {[%clk 00:16:47]} {[%emt 00:00:25]}
14. a4 {[%clk 00:18:21]} {[%emt 00:00:17]} Qb6 {[%clk 00:16:26]} {[%emt
00:00:25]} 15. Qxb6 {[%clk 00:17:09]} {[%emt 00:01:18]} Nxb6 {[%clk 00:16:30]}
16. a5 {[%clk 00:17:13]} Nbd7 {[%clk 00:16:11]} {[%emt 00:00:25]} 17. Rc7
{[%clk 00:17:04]} {[%emt 00:00:14]} Rfc8 {[%clk 00:16:13]} {[%emt 00:00:04]} 18.
Rfc1 {[%clk 00:17:08]} Rxc7 {[%clk 00:15:49]} {[%emt 00:00:30]} 19. Rxc7 {[%clk
00:17:11]} {[%emt 00:00:02]} b6 {[%clk 00:14:49]} {[%emt 00:01:05]} 20. e5
{[%clk 00:16:35]} {[%emt 00:00:41]} dxe5 {[%clk 00:14:15]} {[%emt 00:00:38]} 21.
dxe5 {[%clk 00:16:34]} {[%emt 00:00:06]} Nxe5 {[%clk 00:13:13]} {[%emt
00:01:08]} 22. Nxe5 {[%clk 00:16:29]} {[%emt 00:00:10]} bxa5 {[%clk 00:13:00]}
{[%emt 00:00:19]} 23. Bc3 {[%clk 00:15:49]} {[%emt 00:00:44]} Nd5 {[%clk
00:13:00]} {[%emt 00:00:05]} 24. Rd7 {[%clk 00:15:42]} {[%emt 00:00:12]} Nxc3
{[%clk 00:13:01]} {[%emt 00:00:04]} 25. Nc6 {[%clk 00:14:27]} {[%emt 00:01:21]}
Rxb2 {[%clk 00:12:45]} {[%emt 00:00:20]} 26. Nxe7+ {[%clk 00:14:28]} {[%emt
00:00:05]} Kf8 {[%clk 00:09:37]} {[%emt 00:03:12]} 27. Nc6 {[%clk 00:14:20]}
{[%emt 00:00:13]} Bf6 {[%clk 00:09:29]} {[%emt 00:00:09]} 28. g3 {[%clk
00:14:11]} {[%emt 00:00:18]} a4 {[%clk 00:08:21]} {[%emt 00:01:13]} 29. Bc4
{[%clk 00:14:07]} {[%emt 00:00:09]} Ne4 {[%clk 00:05:10]} {[%emt 00:03:16]} 30.
f3 {[%clk 00:13:18]} {[%emt 00:00:54]} Ng5 {[%clk 00:05:09]} {[%emt 00:00:05]}
31. Rd3 {[%clk 00:11:02]} {[%emt 00:02:21]} Rc2 {[%clk 00:04:48]} {[%emt
00:00:26]} 32. Na5 {[%clk 00:10:20]} {[%emt 00:00:49]} 1/2-1/2

[Event "Nové Hrady - Rapid A"]
[Site "Nové Hrady, Czech Republic"]
[Date "2023.08.12"]
[Round "4.5"]
[White "Šlechta, Adam"]
[Black "Kukla, Josef"]
[Result "1-0"]
[TimeControl "2x20min+5s"]
[WhiteFideId "23734450"]
[BlackFideId "23725869"]
[WhiteElo "1409"]
[BlackElo "1364"]

1. e4 {[%clk 00:20:06]} {[%emt 00:00:04]} e5 {[%clk 00:20:03]} {[%emt
00:00:07]} 2. d4 {[%clk 00:20:10]} exd4 {[%clk 00:19:58]} {[%emt 00:00:11]} 3.
Qxd4 {[%clk 00:20:14]} Nc6 {[%clk 00:20:02]} {[%emt 00:00:02]} 4. Qe3 {[%clk
00:20:18]} {[%emt 00:00:02]} b6 {[%clk 00:20:00]} {[%emt 00:00:07]} 5. Nc3
{[%clk 00:20:15]} {[%emt 00:00:09]} Bc5 {[%clk 00:19:50]} {[%emt 00:00:12]} 6.
Qg3 {[%clk 00:20:17]} {[%emt 00:00:04]} Qf6 {[%clk 00:19:36]} {[%emt 00:00:19]}
7. Bd2 {[%clk 00:19:50]} {[%emt 00:00:32]} Bb7 {[%clk 00:19:11]} {[%emt
00:00:29]} 8. O-O-O {[%clk 00:18:05]} {[%emt 00:01:52]} O-O-O {[%clk 00:19:06]}
{[%emt 00:00:09]} 9. Bg5 {[%clk 00:17:54]} {[%emt 00:00:16]} Bxf2 {[%clk
00:18:24]} {[%emt 00:00:47]} 10. Bxf6 {[%clk 00:17:57]} {[%emt 00:00:02]} Bxg3
{[%clk 00:18:25]} {[%emt 00:00:05]} 11. Bxd8 {[%clk 00:17:59]} {[%emt
00:00:02]} Bf4+ {[%clk 00:18:26]} {[%emt 00:00:04]} 12. Kb1 {[%clk 00:18:03]}
{[%emt 00:00:02]} Kxd8 {[%clk 00:18:18]} {[%emt 00:00:13]} 13. Bc4 {[%clk
00:18:06]} {[%emt 00:00:02]} Ne5 {[%clk 00:18:04]} {[%emt 00:00:19]} 14. Bd5
{[%clk 00:17:57]} {[%emt 00:00:14]} Bxd5 {[%clk 00:17:43]} {[%emt 00:00:25]} 15.
Nxd5 {[%clk 00:17:55]} {[%emt 00:00:07]} Bg5 {[%clk 00:17:07]} {[%emt
00:00:42]} 16. Nf3 {[%clk 00:17:26]} {[%emt 00:00:33]} Nxf3 {[%clk 00:16:22]}
{[%emt 00:00:50]} 17. gxf3 {[%clk 00:17:25]} {[%emt 00:00:06]} c6 {[%clk
00:16:15]} {[%emt 00:00:12]} 18. Rhg1 {[%clk 00:17:15]} {[%emt 00:00:15]} h6
{[%clk 00:15:58]} {[%emt 00:00:22]} 19. Nc3 {[%clk 00:17:12]} {[%emt 00:00:09]}
g6 {[%clk 00:15:38]} {[%emt 00:00:25]} 20. Rd3 {[%clk 00:17:06]} {[%emt
00:00:11]} Bf4 {[%clk 00:15:36]} {[%emt 00:00:07]} 21. Rgd1 {[%clk 00:16:48]}
{[%emt 00:00:23]} Nf6 {[%clk 00:15:29]} {[%emt 00:00:12]} 22. h3 {[%clk
00:16:21]} {[%emt 00:00:32]} Re8 {[%clk 00:15:23]} {[%emt 00:00:10]} 23. Ne2
{[%clk 00:16:24]} {[%emt 00:00:02]} Bc7 {[%clk 00:15:05]} {[%emt 00:00:24]} 24.
Kc1 {[%clk 00:15:50]} {[%emt 00:00:39]} Re5 {[%clk 00:14:58]} {[%emt 00:00:11]}
25. c4 {[%clk 00:15:05]} {[%emt 00:00:49]} Rh5 {[%clk 00:14:43]} {[%emt
00:00:21]} 26. f4 {[%clk 00:14:45]} {[%emt 00:00:26]} Nxe4 {[%clk 00:13:28]}
{[%emt 00:01:19]} 27. Rxd7+ {[%clk 00:14:44]} {[%emt 00:00:06]} Kc8 {[%clk
00:13:31]} {[%emt 00:00:03]} 28. Rxf7 {[%clk 00:14:40]} {[%emt 00:00:08]} Rxh3
{[%clk 00:12:59]} {[%emt 00:00:38]} 29. Rf8+ {[%clk 00:13:45]} {[%emt
00:00:59]} Kb7 {[%clk 00:13:01]} {[%emt 00:00:04]} 30. Rd7 {[%emt 00:00:32]}
Nc5 {[%clk 00:12:29]} {[%emt 00:00:09]} 31. Rh7 {[%clk 00:13:00]} {[%emt
00:00:51]} Rh2 {[%clk 00:12:03]} {[%emt 00:00:30]} 32. Rff7 {[%emt 00:00:39]}
Na6 {[%clk 00:11:45]} {[%emt 00:00:16]} 33. Nd4 {[%clk 00:12:15]} {[%emt
00:00:22]} Nc5 {[%emt 00:01:35]} 34. Rf8 Ne6 {[%emt 00:00:09]} 35. Rg7 Nc5 1-0

[Event "Nové Hrady - Rapid A"]
[Site "Nové Hrady, Czech Republic"]
[Date "2023.08.12"]
[Round "4.6"]
[White "Martinkovič, Adam"]
[Black "Urban, Zdeněk"]
[Result "0-1"]
[TimeControl "2x20min+5s"]
[WhiteFideId "23728019"]
[BlackFideId "312754"]
[WhiteElo "1808"]
[BlackElo "2048"]

1. c4 {[%clk 00:20:07]} {[%emt 00:00:02]} e5 {[%clk 00:20:08]} {[%emt
00:00:02]} 2. Nc3 {[%clk 00:20:10]} {[%emt 00:00:02]} c6 {[%clk 00:20:02]}
{[%emt 00:00:11]} 3. d4 {[%clk 00:19:59]} {[%emt 00:00:16]} d6 {[%clk
00:19:59]} {[%emt 00:00:08]} 4. g3 {[%clk 00:19:18]} {[%emt 00:00:46]} Nf6
{[%clk 00:19:23]} {[%emt 00:00:41]} 5. Bg5 {[%clk 00:19:02]} {[%emt 00:00:21]}
Nbd7 {[%clk 00:19:18]} {[%emt 00:00:11]} 6. Bg2 {[%clk 00:18:49]} {[%emt
00:00:17]} Qb6 {[%clk 00:18:58]} {[%emt 00:00:23]} 7. dxe5 {[%clk 00:14:48]}
{[%emt 00:04:09]} dxe5 {[%clk 00:19:01]} {[%emt 00:00:02]} 8. Qc2 {[%clk
00:14:04]} {[%emt 00:00:49]} Be7 {[%clk 00:18:47]} {[%emt 00:00:19]} 9. Nf3
{[%clk 00:13:34]} {[%emt 00:00:35]} O-O {[%clk 00:18:41]} {[%emt 00:00:10]} 10.
O-O {[%clk 00:13:17]} {[%emt 00:00:22]} Qc7 {[%clk 00:18:16]} {[%emt 00:00:32]}
11. e3 {[%clk 00:12:42]} {[%emt 00:00:38]} h6 {[%clk 00:18:17]} {[%emt
00:00:04]} 12. Bxf6 {[%clk 00:12:38]} {[%emt 00:00:09]} Nxf6 {[%clk 00:18:18]}
{[%emt 00:00:05]} 13. Ne4 {[%clk 00:11:30]} {[%emt 00:01:13]} Ne8 {[%clk
00:18:16]} {[%emt 00:00:06]} 14. Rfd1 {[%clk 00:10:56]} {[%emt 00:00:39]} Bg4
{[%clk 00:18:01]} {[%emt 00:00:19]} 15. Rd2 {[%clk 00:08:07]} {[%emt 00:02:54]}
f5 {[%clk 00:17:55]} {[%emt 00:00:11]} 16. Nc3 {[%clk 00:08:08]} {[%emt
00:00:05]} Nf6 {[%clk 00:17:52]} {[%emt 00:00:07]} 17. h3 {[%clk 00:07:45]}
{[%emt 00:00:29]} Bxf3 {[%clk 00:17:55]} {[%emt 00:00:02]} 18. Bxf3 {[%clk
00:07:48]} {[%emt 00:00:03]} e4 {[%clk 00:17:59]} 19. Bg2 {[%clk 00:07:49]}
{[%emt 00:00:05]} Rad8 {[%clk 00:17:47]} {[%emt 00:00:16]} 20. Rad1 {[%clk
00:07:37]} {[%emt 00:00:17]} Nd7 {[%clk 00:17:21]} {[%emt 00:00:30]} 21. Ne2
{[%clk 00:06:33]} {[%emt 00:01:09]} Nc5 {[%clk 00:15:58]} {[%emt 00:01:29]} 22.
Rxd8 {[%clk 00:05:28]} {[%emt 00:01:10]} Rxd8 {[%clk 00:15:36]} {[%emt
00:00:27]} 23. Rxd8+ {[%clk 00:05:16]} {[%emt 00:00:18]} Qxd8 {[%clk 00:15:18]}
{[%emt 00:00:22]} 24. Nd4 {[%clk 00:05:14]} {[%emt 00:00:07]} g6 {[%clk
00:14:29]} {[%emt 00:00:53]} 25. Bf1 {[%clk 00:05:00]} {[%emt 00:00:20]} a5
{[%clk 00:14:27]} {[%emt 00:00:08]} 26. Nb3 {[%clk 00:03:59]} {[%emt 00:01:05]}
Ne6 {[%clk 00:13:32]} {[%emt 00:00:59]} 27. Be2 {[%clk 00:03:02]} {[%emt
00:01:02]} b6 {[%clk 00:10:34]} {[%emt 00:03:04]} 28. Kf1 {[%clk 00:02:13]}
{[%emt 00:00:55]} Kg7 {[%clk 00:10:29]} {[%emt 00:00:10]} 29. Nd2 {[%clk
00:01:34]} {[%emt 00:00:43]} Bf6 {[%clk 00:10:09]} {[%emt 00:00:25]} 30. Ke1
{[%clk 00:01:18]} {[%emt 00:00:21]} Nc5 {[%clk 00:09:58]} {[%emt 00:00:16]} 31.
b3 {[%clk 00:01:04]} {[%emt 00:00:20]} Qd6 {[%clk 00:09:38]} {[%emt 00:00:24]}
32. a3 {[%emt 00:00:21]} Na6 {[%clk 00:09:32]} 33. Nb1 {[%clk 00:00:44]} {[%emt
00:00:19]} Qe5 {[%clk 00:09:30]} {[%emt 00:00:07]} 34. Qa2 {[%clk 00:00:22]}
{[%emt 00:00:29]} h5 {[%clk 00:09:19]} {[%emt 00:00:14]} 35. h4 {[%clk
00:00:24]} {[%emt 00:00:03]} Nc5 {[%clk 00:09:18]} {[%emt 00:00:05]} 36. Qc2
{[%clk 00:00:20]} {[%emt 00:00:10]} Qa1 {[%clk 00:09:01]} {[%emt 00:00:22]} 37.
Kd2 {[%clk 00:00:18]} {[%emt 00:00:05]} Bb2 {[%clk 00:08:29]} {[%emt 00:00:40]}
38. a4 {[%clk 00:00:21]} {[%emt 00:00:02]} Qa2 {[%clk 00:07:26]} {[%emt
00:01:05]} 39. Bd1 {[%clk 00:00:15]} {[%emt 00:00:13]} Nd3 {[%clk 00:07:07]}
{[%emt 00:00:23]} 40. Ke2 {[%clk 00:00:13]} {[%emt 00:00:03]} Nb4 {[%clk
00:06:03]} {[%emt 00:01:14]} 41. Qd2 Qxb1 42. Qd7+ Kh6 {[%emt 00:00:03]} 0-1